[Event "*** Titled Tuesday 3|2 Blitz"]
[Site "Chess.com"]
[Date "2017.03.07"]
[Round "1"]
[White "eugeniusjr"]
[Black "afgano29"]
[Result "0-1"]
[WhiteElo "1840"]
[BlackElo "2412"]
[TimeControl "180+2"]
[EndTime "13:02:54 PST"]
[Termination "afgano29 won by resignation"]

1. c4 {[%clk 0:03:02]} 1... Nf6 {[%clk 0:02:59.1]} 2. g3 {[%clk 0:03:01.6]} 2...
e5 {[%clk 0:02:58.3]} 3. Bg2 {[%clk 0:02:31.8]} 3... d5 {[%clk 0:02:58.2]} 4.
cxd5 {[%clk 0:02:33.5]} 4... Nxd5 {[%clk 0:02:59.9]} 5. Nc3 {[%clk 0:02:34.8]}
5... Nb6 {[%clk 0:02:59.4]} 6. Nf3 {[%clk 0:02:33.5]} 6... Nc6 {[%clk
0:02:54.1]} 7. a3 {[%clk 0:02:32.9]} 7... Be7 {[%clk 0:02:53.7]} 8. O-O {[%clk
0:02:32.9]} 8... g5 {[%clk 0:02:52.6]} 9. d4 {[%clk 0:02:22.6]} 9... exd4 {[%clk
0:02:48.4]} 10. Nb5 {[%clk 0:02:15.5]} 10... Bf6 {[%clk 0:02:35.9]} 11. e3
{[%clk 0:02:09]} 11... dxe3 {[%clk 0:02:27.8]} 12. Qxd8+ {[%clk 0:02:09.3]}
12... Bxd8 {[%clk 0:02:27.8]} 13. Bxe3 {[%clk 0:02:08.9]} 13... g4 {[%clk
0:02:21.3]} 14. Nfd4 {[%clk 0:02:05.8]} 14... Nxd4 {[%clk 0:02:20.4]} 15. Bxd4
{[%clk 0:02:07.7]} 0-1

[Event "*** Titled Tuesday 3|2 Blitz"]
[Site "Chess.com"]
[Date "2017.03.07"]
[Round "1"]
[White "PaulfromSPb"]
[Black "coalescenet"]
[Result "1-0"]
[WhiteElo "2546"]
[BlackElo "2233"]
[TimeControl "180+2"]
[EndTime "13:03:46 PST"]
[Termination "PaulfromSPb won by resignation"]

1. e4 {[%clk 0:02:58.9]} 1... c6 {[%clk 0:03:00.2]} 2. d4 {[%clk 0:02:57.3]}
2... d5 {[%clk 0:03:01.4]} 3. Nd2 {[%clk 0:02:56.5]} 3... dxe4 {[%clk
0:03:02.1]} 4. Nxe4 {[%clk 0:02:57.3]} 4... Bf5 {[%clk 0:03:03.2]} 5. Ng3 {[%clk
0:02:58.4]} 5... Bg6 {[%clk 0:03:04.7]} 6. Nh3 {[%clk 0:03:00]} 6... Nf6 {[%clk
0:03:03.6]} 7. Nf4 {[%clk 0:03:00.5]} 7... e5 {[%clk 0:03:04.4]} 8. dxe5 {[%clk
0:02:58.4]} 8... Qa5+ {[%clk 0:03:05.7]} 9. Bd2 {[%clk 0:02:57.7]} 9... Qxe5+
{[%clk 0:03:06.7]} 10. Be2 {[%clk 0:02:58.7]} 10... Be7 {[%clk 0:02:48.3]} 11.
Nxg6 {[%clk 0:02:55.7]} 11... hxg6 {[%clk 0:02:48.2]} 12. Bc3 {[%clk 0:02:56.8]}
12... Qc7 {[%clk 0:02:48.9]} 13. Qd2 {[%clk 0:02:53.9]} 13... Nbd7 {[%clk
0:02:47.6]} 14. O-O-O {[%clk 0:02:54.4]} 14... O-O {[%clk 0:02:35]} 15. h4
{[%clk 0:02:54.2]} 15... Rad8 {[%clk 0:02:31.6]} 16. h5 {[%clk 0:02:54.7]} 16...
Nc5 {[%clk 0:02:32.1]} 17. Qe1 {[%clk 0:02:39.2]} 17... g5 {[%clk 0:02:16.2]}
18. h6 {[%clk 0:02:39.5]} 18... g6 {[%clk 0:02:13.7]} 19. Rxd8 {[%clk
0:02:34.5]} 19... Rxd8 {[%clk 0:02:08.2]} 20. h7+ {[%clk 0:02:34.9]} 20... Kh8
{[%clk 0:02:06.6]} 21. Bc4 {[%clk 0:02:36.3]} 21... Rf8 {[%clk 0:01:49.7]} 22.
Be5 {[%clk 0:02:33.5]} 22... Qa5 {[%clk 0:01:47.3]} 23. Qxa5 {[%clk 0:02:30.1]}
1-0

[Event "*** Titled Tuesday 3|2 Blitz"]
[Site "Chess.com"]
[Date "2017.03.07"]
[Round "1"]
[White "Cayse"]
[Black "pedroholly22"]
[Result "1-0"]
[WhiteElo "2556"]
[BlackElo "2282"]
[TimeControl "180+2"]
[EndTime "13:04:04 PST"]
[Termination "Cayse won by checkmate"]

1. e4 {[%clk 0:03:02]} 1... c5 {[%clk 0:02:57.1]} 2. Nf3 {[%clk 0:03:02.3]} 2...
d6 {[%clk 0:02:54.2]} 3. d4 {[%clk 0:03:01.7]} 3... cxd4 {[%clk 0:02:55.7]} 4.
Nxd4 {[%clk 0:03:03.2]} 4... Nf6 {[%clk 0:02:57.3]} 5. Nc3 {[%clk 0:03:03.9]}
5... a6 {[%clk 0:02:58.8]} 6. Be2 {[%clk 0:03:04.9]} 6... e5 {[%clk 0:02:58.3]}
7. Nb3 {[%clk 0:03:05.3]} 7... Be6 {[%clk 0:02:58.8]} 8. Bg5 {[%clk 0:03:05.9]}
8... Be7 {[%clk 0:02:59.5]} 9. Bxf6 {[%clk 0:03:06.7]} 9... Bxf6 {[%clk
0:03:00.5]} 10. Qd3 {[%clk 0:03:08]} 10... O-O {[%clk 0:02:56.8]} 11. O-O-O
{[%clk 0:03:07.6]} 11... Be7 {[%clk 0:02:57.4]} 12. g3 {[%clk 0:02:58.9]} 12...
Nc6 {[%clk 0:02:52.9]} 13. Kb1 {[%clk 0:02:59.4]} 13... Rc8 {[%clk 0:02:52.5]}
14. f4 {[%clk 0:02:54.9]} 14... Na5 {[%clk 0:02:50.5]} 15. Rhe1 {[%clk
0:02:41.5]} 15... Qb6 {[%clk 0:02:41.6]} 16. f5 {[%clk 0:02:37.2]} 16... Bc4
{[%clk 0:02:42]} 17. Qf3 {[%clk 0:02:37.6]} 17... Nxb3 {[%clk 0:02:20]} 18. axb3
{[%clk 0:02:32.4]} 18... Bxe2 {[%clk 0:02:20.8]} 19. Rxe2 {[%clk 0:02:33.4]}
19... Bd8 {[%clk 0:02:19.1]} 20. Nd5 {[%clk 0:02:33.3]} 20... Qc6 {[%clk
0:02:14.6]} 21. f6 {[%clk 0:02:31.6]} 21... g6 {[%clk 0:02:13.4]} 22. g4 {[%clk
0:02:19.4]} 22... a5 {[%clk 0:02:06.2]} 23. Qe3 {[%clk 0:02:17.2]} 23... Kh8
{[%clk 0:02:01.3]} 24. Qh6 {[%clk 0:02:16.8]} 24... Rg8 {[%clk 0:02:02]} 25. Rd3
{[%clk 0:02:17.1]} 25... a4 {[%clk 0:01:59.8]} 26. Qxh7+ {[%clk 0:02:14.3]}
26... Kxh7 {[%clk 0:02:00.7]} 27. Rh3# {[%clk 0:02:16.2]} 1-0

[Event "*** Titled Tuesday 3|2 Blitz"]
[Site "Chess.com"]
[Date "2017.03.07"]
[Round "1"]
[White "GMOratovsky"]
[Black "aa175"]
[Result "1-0"]
[WhiteElo "2414"]
[BlackElo "1852"]
[TimeControl "180+2"]
[EndTime "13:04:49 PST"]
[Termination "GMOratovsky won by checkmate"]

1. e4 {[%clk 0:03:02]} 1... e5 {[%clk 0:02:59.7]} 2. Nf3 {[%clk 0:03:00.9]} 2...
Nc6 {[%clk 0:03:00.4]} 3. d4 {[%clk 0:02:58.3]} 3... exd4 {[%clk 0:03:01.1]} 4.
Nxd4 {[%clk 0:03:00.2]} 4... Nxd4 {[%clk 0:03:01.3]} 5. Qxd4 {[%clk 0:03:00.7]}
5... Nf6 {[%clk 0:03:00.5]} 6. e5 {[%clk 0:03:00]} 6... Ng8 {[%clk 0:02:57]} 7.
Nc3 {[%clk 0:02:44.2]} 7... Be7 {[%clk 0:02:46.6]} 8. Bc4 {[%clk 0:02:43]} 8...
d6 {[%clk 0:02:45.9]} 9. exd6 {[%clk 0:02:34.7]} 9... Bxd6 {[%clk 0:02:44.9]}
10. Qxg7 {[%clk 0:02:27.9]} 10... Qe7+ {[%clk 0:02:42.2]} 11. Be3 {[%clk
0:02:29]} 11... Be5 {[%clk 0:02:42]} 12. Bxf7+ {[%clk 0:02:23.8]} 12... Kd8
{[%clk 0:02:33.1]} 13. O-O-O+ {[%clk 0:02:19.1]} 13... Bd7 {[%clk 0:02:33.3]}
14. Qg5 {[%clk 0:01:53.1]} 14... Bf6 {[%clk 0:02:29.3]} 15. Qd5 {[%clk
0:01:45.4]} 15... c6 {[%clk 0:02:26.2]} 16. Qb3 {[%clk 0:01:34.1]} 16... Bxc3
{[%clk 0:02:26.2]} 17. Bxg8 {[%clk 0:01:26]} 17... Be5 {[%clk 0:02:11.3]} 18.
Be6 {[%clk 0:01:24.2]} 18... Bd6 {[%clk 0:02:08.5]} 19. Bxd7 {[%clk 0:01:25.6]}
19... Qxd7 {[%clk 0:02:09.9]} 20. Rxd6 {[%clk 0:01:15.6]} 20... Qxd6 {[%clk
0:02:09.9]} 21. Rd1 {[%clk 0:01:16.9]} 21... Qxd1+ {[%clk 0:02:11.4]} 22. Kxd1
{[%clk 0:01:18.8]} 22... Kc7 {[%clk 0:02:12.8]} 23. Bf4+ {[%clk 0:01:18.6]}
23... Kd7 {[%clk 0:02:12.8]} 24. Qf7+ {[%clk 0:01:19.4]} 24... Kd8 {[%clk
0:02:12.7]} 25. Qc7+ {[%clk 0:01:10.7]} 25... Ke8 {[%clk 0:02:13.5]} 26. Bd6
{[%clk 0:01:09.5]} 26... Rd8 {[%clk 0:02:15.4]} 27. Qe7# {[%clk 0:01:09.7]} 1-0

[Event "*** Titled Tuesday 3|2 Blitz"]
[Site "Chess.com"]
[Date "2017.03.07"]
[Round "1"]
[White "jcgs1030"]
[Black "Tash_Boy"]
[Result "1-0"]
[WhiteElo "2294"]
[BlackElo "2528"]
[TimeControl "180+2"]
[EndTime "13:04:51 PST"]
[Termination "jcgs1030 won by resignation"]

1. e4 {[%clk 0:03:02]} 1... e5 {[%clk 0:03:00.7]} 2. Nf3 {[%clk 0:03:01.8]} 2...
Nc6 {[%clk 0:03:01.6]} 3. Bb5 {[%clk 0:03:01.1]} 3... a6 {[%clk 0:03:01.5]} 4.
Ba4 {[%clk 0:02:59.2]} 4... Nf6 {[%clk 0:03:03]} 5. O-O {[%clk 0:02:58.7]} 5...
Be7 {[%clk 0:03:03.5]} 6. c3 {[%clk 0:02:53.8]} 6... Nxe4 {[%clk 0:02:49.7]} 7.
Re1 {[%clk 0:02:51.5]} 7... Nf6 {[%clk 0:02:42.5]} 8. Nxe5 {[%clk 0:02:49.2]}
8... Nxe5 {[%clk 0:02:43]} 9. Rxe5 {[%clk 0:02:50.4]} 9... O-O {[%clk
0:02:44.6]} 10. d4 {[%clk 0:02:46.2]} 10... d6 {[%clk 0:02:42.7]} 11. Re1 {[%clk
0:02:45.1]} 11... Bg4 {[%clk 0:02:43.2]} 12. Qd3 {[%clk 0:02:43.7]} 12... d5
{[%clk 0:02:35.7]} 13. Bg5 {[%clk 0:02:35.6]} 13... Bh5 {[%clk 0:02:34.7]} 14.
Nd2 {[%clk 0:02:34.5]} 14... Bg6 {[%clk 0:02:34.3]} 15. Qe3 {[%clk 0:02:34]}
15... Ne4 {[%clk 0:02:29.6]} 16. Bxe7 {[%clk 0:02:32.2]} 16... Qxe7 {[%clk
0:02:31.1]} 17. f3 {[%clk 0:02:32.4]} 17... f5 {[%clk 0:02:20.5]} 18. Bb3 {[%clk
0:02:26.2]} 18... f4 {[%clk 0:02:03.9]} 19. Qe2 {[%clk 0:02:18.8]} 19... Kh8
{[%clk 0:01:41.5]} 20. Bxd5 {[%clk 0:02:14.5]} 20... Qg5 {[%clk 0:01:28.5]} 21.
Bxe4 {[%clk 0:02:13.2]} 21... Rae8 {[%clk 0:01:27.9]} 22. Qd3 {[%clk 0:02:06.8]}
22... Bf7 {[%clk 0:01:29]} 23. Bxb7 {[%clk 0:02:02.3]} 23... Be6 {[%clk
0:01:26.5]} 24. Re5 {[%clk 0:01:59.3]} 24... Qh4 {[%clk 0:01:24.9]} 25. Rae1
{[%clk 0:01:55.6]} 1-0

[Event "*** Titled Tuesday 3|2 Blitz"]
[Site "Chess.com"]
[Date "2017.03.07"]
[Round "1"]
[White "denizozen"]
[Black "escher"]
[Result "1-0"]
[WhiteElo "2461"]
[BlackElo "2078"]
[TimeControl "180+2"]
[EndTime "13:04:53 PST"]
[Termination "denizozen won by resignation"]

1. e4 {[%clk 0:03:02]} 1... c5 {[%clk 0:02:54.7]} 2. Nf3 {[%clk 0:03:02.4]} 2...
Nc6 {[%clk 0:02:51.2]} 3. Bb5 {[%clk 0:03:02.3]} 3... g6 {[%clk 0:02:50.9]} 4.
O-O {[%clk 0:03:02.9]} 4... Bg7 {[%clk 0:02:51.2]} 5. Re1 {[%clk 0:03:04.2]}
5... e5 {[%clk 0:02:46.7]} 6. c3 {[%clk 0:02:56.8]} 6... Nge7 {[%clk 0:02:37.3]}
7. Na3 {[%clk 0:02:57.3]} 7... O-O {[%clk 0:02:14.7]} 8. Nc2 {[%clk 0:02:57.6]}
8... a6 {[%clk 0:02:07.4]} 9. Bf1 {[%clk 0:02:57.5]} 9... d5 {[%clk 0:02:04]}
10. exd5 {[%clk 0:02:54.6]} 10... Nxd5 {[%clk 0:02:04.7]} 11. d4 {[%clk
0:02:53.5]} 11... cxd4 {[%clk 0:01:49.9]} 12. cxd4 {[%clk 0:02:55.4]} 12... Bg4
{[%clk 0:01:48]} 13. dxe5 {[%clk 0:02:47.1]} 13... Nxe5 {[%clk 0:01:29.5]} 14.
Be2 {[%clk 0:02:46.7]} 14... Nxf3+ {[%clk 0:01:21]} 15. Bxf3 {[%clk 0:02:48.6]}
15... Bxf3 {[%clk 0:01:21.5]} 16. Qxf3 {[%clk 0:02:50.5]} 16... Qc7 {[%clk
0:01:13.6]} 17. Qxd5 {[%clk 0:02:38.3]} 17... Qxc2 {[%clk 0:01:13.9]} 18. Qxb7
{[%clk 0:02:38.4]} 18... Rfb8 {[%clk 0:01:12.6]} 19. Qf3 {[%clk 0:02:23]} 19...
Bxb2 {[%clk 0:01:09]} 20. Bxb2 {[%clk 0:02:23.4]} 20... Qxb2 {[%clk 0:01:10.9]}
21. h3 {[%clk 0:02:18.9]} 21... Qb7 {[%clk 0:01:04.2]} 22. Re8+ {[%clk
0:02:15.1]} 1-0

[Event "*** Titled Tuesday 3|2 Blitz"]
[Site "Chess.com"]
[Date "2017.03.07"]
[Round "1"]
[White "tjallkompall"]
[Black "proxy6"]
[Result "1-0"]
[WhiteElo "2476"]
[BlackElo "2142"]
[TimeControl "180+2"]
[EndTime "13:05:21 PST"]
[Termination "tjallkompall won by resignation"]

1. c4 {[%clk 0:03:02]} 1... e5 {[%clk 0:03:00.3]} 2. Nc3 {[%clk 0:03:02.4]} 2...
Nc6 {[%clk 0:03:01.1]} 3. Nf3 {[%clk 0:03:02.9]} 3... Bc5 {[%clk 0:03:02.6]} 4.
e3 {[%clk 0:02:55.7]} 4... d6 {[%clk 0:02:59.5]} 5. d4 {[%clk 0:02:56.6]} 5...
exd4 {[%clk 0:02:59.9]} 6. exd4 {[%clk 0:02:58.5]} 6... Bb6 {[%clk 0:03:01.2]}
7. Be2 {[%clk 0:02:48.2]} 7... Nge7 {[%clk 0:03:01.3]} 8. Bg5 {[%clk 0:02:38.8]}
8... f6 {[%clk 0:03:00.2]} 9. Be3 {[%clk 0:02:30.7]} 9... O-O {[%clk 0:02:59.6]}
10. O-O {[%clk 0:02:27.2]} 10... a6 {[%clk 0:02:58.5]} 11. c5 {[%clk 0:02:17.3]}
11... Ba7 {[%clk 0:02:55.1]} 12. cxd6 {[%clk 0:02:05.3]} 12... cxd6 {[%clk
0:02:57]} 13. d5 {[%clk 0:02:03.9]} 13... Bxe3 {[%clk 0:02:51.7]} 14. dxc6
{[%clk 0:02:04.7]} 14... Ba7 {[%clk 0:02:46.3]} 15. cxb7 {[%clk 0:01:57.9]}
15... Bxb7 {[%clk 0:02:48.2]} 16. Qb3+ {[%clk 0:01:59]} 16... d5 {[%clk
0:02:32.4]} 17. Qxb7 {[%clk 0:01:57]} 17... d4 {[%clk 0:02:19.9]} 18. Bc4+
{[%clk 0:01:53.1]} 18... Kh8 {[%clk 0:02:20.4]} 19. Nd5 {[%clk 0:01:54.7]} 19...
Nxd5 {[%clk 0:02:19.4]} 20. Qxd5 {[%clk 0:01:54.8]} 20... Qb6 {[%clk 0:02:19.7]}
21. b3 {[%clk 0:01:47]} 21... Rad8 {[%clk 0:02:20]} 22. Qf5 {[%clk 0:01:47.9]}
22... Rfe8 {[%clk 0:02:14]} 23. Bd3 {[%clk 0:01:39.4]} 23... g6 {[%clk
0:02:14.1]} 24. Qh3 {[%clk 0:01:40.5]} 24... Kg7 {[%clk 0:02:13.2]} 25. Rfe1
{[%clk 0:01:40.6]} 25... Qd6 {[%clk 0:02:07.2]} 26. Rxe8 {[%clk 0:01:37.6]}
26... Rxe8 {[%clk 0:02:09.1]} 27. Re1 {[%clk 0:01:38.9]} 27... Rxe1+ {[%clk
0:02:08.6]} 28. Nxe1 {[%clk 0:01:40.8]} 28... Bc5 {[%clk 0:02:09.5]} 29. Nc2
{[%clk 0:01:37.7]} 29... a5 {[%clk 0:02:07.4]} 30. Qf3 {[%clk 0:01:37.7]} 30...
Qe5 {[%clk 0:02:04.1]} 31. Qe4 {[%clk 0:01:38]} 31... Qc7 {[%clk 0:02:04.2]} 32.
g3 {[%clk 0:01:34.2]} 32... Qd7 {[%clk 0:02:01.4]} 33. h4 {[%clk 0:01:30.8]} 1-0

[Event "*** Titled Tuesday 3|2 Blitz"]
[Site "Chess.com"]
[Date "2017.03.07"]
[Round "1"]
[White "LuckyTiger"]
[Black "MattyDPerrine"]
[Result "1-0"]
[WhiteElo "2506"]
[BlackElo "2191"]
[TimeControl "180+2"]
[EndTime "13:05:44 PST"]
[Termination "LuckyTiger won by resignation"]

1. e4 {[%clk 0:03:01.9]} 1... c5 {[%clk 0:03:00.6]} 2. c3 {[%clk 0:03:02.7]}
2... Nf6 {[%clk 0:03:00.8]} 3. e5 {[%clk 0:03:03.7]} 3... Nd5 {[%clk 0:03:02.4]}
4. Nf3 {[%clk 0:03:05.4]} 4... e6 {[%clk 0:03:03.5]} 5. d4 {[%clk 0:03:06.1]}
5... cxd4 {[%clk 0:03:05.4]} 6. Bc4 {[%clk 0:03:07.1]} 6... Nb6 {[%clk
0:02:59.8]} 7. Bb3 {[%clk 0:03:07.5]} 7... d6 {[%clk 0:02:58.4]} 8. exd6 {[%clk
0:02:53.5]} 8... Qxd6 {[%clk 0:03:00.3]} 9. cxd4 {[%clk 0:02:52.4]} 9... Be7
{[%clk 0:02:56.8]} 10. Nc3 {[%clk 0:02:53.2]} 10... O-O {[%clk 0:02:57.5]} 11.
O-O {[%clk 0:02:54.5]} 11... Nc6 {[%clk 0:02:54]} 12. a3 {[%clk 0:02:44.4]}
12... Na5 {[%clk 0:02:46.7]} 13. Ba2 {[%clk 0:02:43]} 13... Bd7 {[%clk
0:02:45.5]} 14. Ne5 {[%clk 0:02:36]} 14... Bc6 {[%clk 0:02:28]} 15. b4 {[%clk
0:02:30.3]} 15... Nac4 {[%clk 0:02:08.8]} 16. Bxc4 {[%clk 0:02:26.4]} 16... Nxc4
{[%clk 0:02:10.7]} 17. Nxc4 {[%clk 0:02:28.1]} 17... Qc7 {[%clk 0:02:11.1]} 18.
Ne5 {[%clk 0:02:13.2]} 18... Bxg2 {[%clk 0:02:09.5]} 19. Kxg2 {[%clk 0:02:15.1]}
19... Qxc3 {[%clk 0:02:10.6]} 20. Be3 {[%clk 0:02:16.8]} 20... Qc7 {[%clk
0:02:09.7]} 21. Rc1 {[%clk 0:02:14.4]} 21... Qd8 {[%clk 0:02:10.9]} 22. Qf3
{[%clk 0:02:13.7]} 22... Rb8 {[%clk 0:02:12.2]} 23. Kh1 {[%clk 0:02:12.2]} 23...
f6 {[%clk 0:02:13.6]} 24. Nd3 {[%clk 0:02:12]} 24... Bd6 {[%clk 0:02:13]} 25.
Rg1 {[%clk 0:02:11.5]} 25... b6 {[%clk 0:02:13.5]} 26. Rc6 {[%clk 0:02:07.6]}
26... Qd7 {[%clk 0:02:10.8]} 27. Bf4 {[%clk 0:01:30.8]} 27... Bxf4 {[%clk
0:02:11.3]} 28. Nxf4 {[%clk 0:01:32.7]} 28... Rbe8 {[%clk 0:02:09.7]} 29. Nh5
{[%clk 0:01:24.8]} 29... g6 {[%clk 0:02:11.1]} 30. Nf4 {[%clk 0:01:14.8]} 30...
e5 {[%clk 0:01:55.8]} 31. Qd5+ {[%clk 0:01:11.6]} 31... Qxd5+ {[%clk 0:01:56.7]}
32. Nxd5 {[%clk 0:01:13.5]} 32... Kg7 {[%clk 0:01:56.8]} 33. Nc7 {[%clk
0:01:11.3]} 1-0

[Event "*** Titled Tuesday 3|2 Blitz"]
[Site "Chess.com"]
[Date "2017.03.07"]
[Round "1"]
[White "Cecile_Haussernot"]
[Black "ftorodent"]
[Result "1-0"]
[WhiteElo "2271"]
[BlackElo "2510"]
[TimeControl "180+2"]
[EndTime "13:05:50 PST"]
[Termination "Cecile_Haussernot won by resignation"]

1. Nf3 {[%clk 0:03:02]} 1... d5 {[%clk 0:02:59.2]} 2. g3 {[%clk 0:03:02]} 2...
c6 {[%clk 0:02:59.7]} 3. Bg2 {[%clk 0:03:03.2]} 3... Bg4 {[%clk 0:03:01.2]} 4.
O-O {[%clk 0:03:04.5]} 4... Nd7 {[%clk 0:03:02.1]} 5. d3 {[%clk 0:03:00.7]} 5...
Ngf6 {[%clk 0:03:01.4]} 6. Nbd2 {[%clk 0:02:56.4]} 6... e5 {[%clk 0:03:02.1]} 7.
e4 {[%clk 0:02:55.6]} 7... dxe4 {[%clk 0:03:03]} 8. dxe4 {[%clk 0:02:56.7]} 8...
Be7 {[%clk 0:03:04.4]} 9. Qe2 {[%clk 0:02:57.6]} 9... O-O {[%clk 0:03:05]} 10.
h3 {[%clk 0:02:59.1]} 10... Bh5 {[%clk 0:03:05.3]} 11. g4 {[%clk 0:02:57.8]}
11... Bg6 {[%clk 0:03:05.6]} 12. Nh4 {[%clk 0:02:56.8]} 12... Re8 {[%clk
0:03:00.9]} 13. Nc4 {[%clk 0:02:53.7]} 13... Qc7 {[%clk 0:03:01.2]} 14. Bd2
{[%clk 0:02:42.9]} 14... Bxe4 {[%clk 0:02:54.8]} 15. Bxe4 {[%clk 0:02:32.9]}
15... Nxe4 {[%clk 0:02:55.7]} 16. Qxe4 {[%clk 0:02:34.4]} 16... Bxh4 {[%clk
0:02:56.6]} 17. g5 {[%clk 0:02:36]} 17... b5 {[%clk 0:02:48.2]} 18. Na3 {[%clk
0:02:31.3]} 18... Bxg5 {[%clk 0:02:33.4]} 19. Bxg5 {[%clk 0:02:30.7]} 19... Nf8
{[%clk 0:02:32.8]} 20. Rad1 {[%clk 0:02:26.9]} 20... h6 {[%clk 0:02:30.4]} 21.
Be3 {[%clk 0:02:27.3]} 21... Qc8 {[%clk 0:02:27.9]} 22. Kh2 {[%clk 0:02:27.5]}
22... f5 {[%clk 0:02:28]} 23. Qg2 {[%clk 0:02:24.4]} 23... Re6 {[%clk
0:02:25.7]} 24. Rg1 {[%clk 0:02:23.7]} 24... Rg6 {[%clk 0:02:22.9]} 25. Qf3
{[%clk 0:02:24.9]} 25... Qe6 {[%clk 0:02:22.4]} 26. Qh5 {[%clk 0:02:21.2]} 26...
Kh7 {[%clk 0:02:20.3]} 27. c3 {[%clk 0:02:12.2]} 27... f4 {[%clk 0:02:10.9]} 28.
Bc5 {[%clk 0:02:12.8]} 28... Rxg1 {[%clk 0:02:08.5]} 29. Rxg1 {[%clk 0:02:13.3]}
29... Ng6 {[%clk 0:02:10.1]} 30. Rd1 {[%clk 0:02:10.1]} 30... Qxa2 {[%clk
0:01:50.8]} 31. Qf5 {[%clk 0:02:04.2]} 31... b4 {[%clk 0:01:13.6]} 32. Rg1
{[%clk 0:01:59]} 1-0

[Event "*** Titled Tuesday 3|2 Blitz"]
[Site "Chess.com"]
[Date "2017.03.07"]
[Round "1"]
[White "jncool68"]
[Black "Andrejkin"]
[Result "1-0"]
[WhiteElo "2520"]
[BlackElo "2227"]
[TimeControl "180+2"]
[EndTime "13:06:00 PST"]
[Termination "jncool68 won by resignation"]

1. e4 {[%clk 0:03:02]} 1... c5 {[%clk 0:02:58.8]} 2. Nf3 {[%clk 0:03:02.8]} 2...
d6 {[%clk 0:02:59.4]} 3. Nc3 {[%clk 0:03:01.8]} 3... a6 {[%clk 0:02:55.5]} 4. d4
{[%clk 0:03:01.6]} 4... cxd4 {[%clk 0:02:56.3]} 5. Nxd4 {[%clk 0:03:03.5]} 5...
Nf6 {[%clk 0:02:57.6]} 6. Bg5 {[%clk 0:02:59.4]} 6... e6 {[%clk 0:02:57.8]} 7.
f4 {[%clk 0:02:58.6]} 7... Nbd7 {[%clk 0:02:56.8]} 8. Qf3 {[%clk 0:02:57.5]}
8... Qc7 {[%clk 0:02:57.3]} 9. O-O-O {[%clk 0:02:58.4]} 9... b5 {[%clk
0:02:58.2]} 10. Bd3 {[%clk 0:02:54.7]} 10... Bb7 {[%clk 0:02:59.1]} 11. Rhe1
{[%clk 0:02:54]} 11... b4 {[%clk 0:02:59.9]} 12. Nce2 {[%clk 0:02:47.8]} 12...
Be7 {[%clk 0:02:56.1]} 13. g4 {[%clk 0:02:47.8]} 13... h6 {[%clk 0:02:56.3]} 14.
Bxf6 {[%clk 0:02:48.9]} 14... Bxf6 {[%clk 0:02:50.6]} 15. Kb1 {[%clk 0:02:48.3]}
15... Rc8 {[%clk 0:02:25.2]} 16. Qe3 {[%clk 0:02:41.6]} 16... Nb6 {[%clk
0:02:12.3]} 17. f5 {[%clk 0:02:36.3]} 17... e5 {[%clk 0:02:02.7]} 18. Nf3 {[%clk
0:02:33.8]} 18... O-O {[%clk 0:01:24.7]} 19. h4 {[%clk 0:02:34]} 19... Nc4
{[%clk 0:01:22.8]} 20. Bxc4 {[%clk 0:02:34.6]} 20... Qxc4 {[%clk 0:01:23.4]} 21.
Ng3 {[%clk 0:02:35]} 21... d5 {[%clk 0:01:13.7]} 22. g5 {[%clk 0:02:35.2]} 22...
d4 {[%clk 0:01:11.6]} 23. Qd3 {[%clk 0:02:31.8]} 23... Qxd3 {[%clk 0:01:11.5]}
24. cxd3 {[%clk 0:02:32.2]} 24... hxg5 {[%clk 0:01:05.6]} 25. hxg5 {[%clk
0:02:33.3]} 25... Be7 {[%clk 0:01:05.4]} 26. Rh1 {[%clk 0:02:31.5]} 26... Bd6
{[%clk 0:00:33.9]} 27. Rh3 {[%clk 0:02:22.7]} 27... Rfd8 {[%clk 0:00:33.8]} 28.
f6 {[%clk 0:02:21.1]} 28... gxf6 {[%clk 0:00:30.3]} 29. gxf6 {[%clk 0:02:22.1]}
29... Bf8 {[%clk 0:00:17.3]} 30. Nf5 {[%clk 0:02:17.7]} 1-0

[Event "*** Titled Tuesday 3|2 Blitz"]
[Site "Chess.com"]
[Date "2017.03.07"]
[Round "1"]
[White "Hikaru"]
[Black "Lupul_Cenusiu"]
[Result "1-0"]
[WhiteElo "2901"]
[BlackElo "2400"]
[TimeControl "180+2"]
[EndTime "13:06:24 PST"]
[Termination "Hikaru won by checkmate"]

1. b3 {[%clk 0:03:02]} 1... d6 {[%clk 0:03:00.2]} 2. Bb2 {[%clk 0:03:03.9]} 2...
Nd7 {[%clk 0:03:01.3]} 3. d4 {[%clk 0:03:03.5]} 3... Ngf6 {[%clk 0:03:01.8]} 4.
Nf3 {[%clk 0:02:58]} 4... c6 {[%clk 0:03:02.6]} 5. e3 {[%clk 0:02:59.4]} 5... g6
{[%clk 0:03:00.1]} 6. Be2 {[%clk 0:02:59.1]} 6... Bg7 {[%clk 0:03:00.9]} 7. O-O
{[%clk 0:03:01]} 7... O-O {[%clk 0:03:01.8]} 8. c4 {[%clk 0:03:01.2]} 8... a5
{[%clk 0:03:02.7]} 9. Nc3 {[%clk 0:03:01.8]} 9... Qc7 {[%clk 0:02:49.2]} 10. Rc1
{[%clk 0:03:00.3]} 10... Re8 {[%clk 0:02:47.8]} 11. d5 {[%clk 0:02:57.9]} 11...
Nc5 {[%clk 0:02:45.5]} 12. Nd4 {[%clk 0:02:58.8]} 12... Bd7 {[%clk 0:02:42.9]}
13. Bf3 {[%clk 0:02:59.4]} 13... Qb6 {[%clk 0:02:42]} 14. dxc6 {[%clk
0:02:53.4]} 14... bxc6 {[%clk 0:02:42.1]} 15. Ba3 {[%clk 0:02:54.5]} 15... Rac8
{[%clk 0:02:39.5]} 16. Qd2 {[%clk 0:02:51.6]} 16... Red8 {[%clk 0:02:37.8]} 17.
Rfd1 {[%clk 0:02:52.1]} 17... h5 {[%clk 0:02:35.2]} 18. h3 {[%clk 0:02:51.7]}
18... Be8 {[%clk 0:02:34.3]} 19. e4 {[%clk 0:02:49.3]} 19... Nfd7 {[%clk
0:02:29.9]} 20. Qe3 {[%clk 0:02:49.9]} 20... Kh7 {[%clk 0:02:22.2]} 21. Be2
{[%clk 0:02:50.4]} 21... Bh6 {[%clk 0:02:19.6]} 22. Qf3 {[%clk 0:02:39.9]} 22...
Na6 {[%clk 0:01:22.8]} 23. Rb1 {[%clk 0:02:36.6]} 23... Nb4 {[%clk 0:01:22.2]}
24. Bc1 {[%clk 0:02:34.2]} 24... Bxc1 {[%clk 0:01:12.6]} 25. Rbxc1 {[%clk
0:02:36.1]} 25... Qc5 {[%clk 0:00:53.2]} 26. Qg3 {[%clk 0:02:30.4]} 26... e5
{[%clk 0:00:44.1]} 27. Nf3 {[%clk 0:02:29.7]} 27... Nf6 {[%clk 0:00:38.5]} 28.
Qg5 {[%clk 0:02:28.1]} 28... Kg7 {[%clk 0:00:36.7]} 29. Nh4 {[%clk 0:02:29.3]}
29... Nh7 {[%clk 0:00:33]} 30. Qg3 {[%clk 0:02:29.7]} 30... Kf8 {[%clk
0:00:20.2]} 31. Bxh5 {[%clk 0:02:22.8]} 31... gxh5 {[%clk 0:00:20.4]} 32. Nf5
{[%clk 0:02:23.1]} 32... Bd7 {[%clk 0:00:11]} 33. Qg7+ {[%clk 0:02:19.2]} 33...
Ke8 {[%clk 0:00:12.2]} 34. Nxd6+ {[%clk 0:02:20.6]} 34... Ke7 {[%clk 0:00:12.5]}
35. Qxf7# {[%clk 0:02:20.1]} 1-0